bitfinex-derivatives/quotes_ETHF0:USTF0_20250612
["timestamp","ask_amount","ask_price","bid_price","bid_amount"]
[1749750577776,0.00541233,2770.7,2770.6,6.67245367]
[1749750578073,0.00541233,2770.7,2770.6,4.55406]
[1749750578969,0.00541233,2770.7,2770.6,6.67169335]
[1749750579273,0.00541233,2770.7,2770.6,6.67143141]
[1749750585171,5.65012,2771.5,2771.2,0.72147]
[1749750585473,6.63545,2771.4,2771.0,5.01168]
[1749750585679,7.93305,2771.4,2771.3,0.72148]
[1749750585980,0.6052,2771.5,2771.4,0.72145]
[1749750586279,23.73762,2771.5,2771.4,0.72145]
[1749750586677,25.03522,2771.5,2771.4,0.72145]
[1749750587875,0.72145,2771.4,2771.3,3.2078]
[1749750588075,0.72148,2771.3,2771.2,0.00541233]
[1749750588483,1.90558,2771.3,2771.2,0.00541233]
[1749750588978,6.90558,2771.3,2771.2,0.00541233]
[1749750590379,1.90558,2771.3,2771.2,0.00541233]
[1749750593186,0.72156,2771.0,2770.9,3.2078]
[1749750593379,29.04356,2771.0,2770.9,4.6178924]
[1749750594086,29.69436,2771.0,2770.9,4.6178924]
[1749750595287,29.69436,2771.0,2770.9,5.32517141]
[1749750596185,0.72158,2770.9,2770.8,2.11737141]
[1749750596388,0.72161,2770.8,2770.7,1.42108446]
[1749750596575,1.34691,2770.8,2770.7,0.00541233]
[1749750596774,2.60221,2770.8,2770.7,0.00541233]
[1749750597086,7.60221,2770.8,2770.7,2.33e-06]
[1749750597586,0.72182,2770.0,2769.9,2.11737141]
[1749750597780,0.72184,2769.9,2769.8,2.11737141]
[1749750598081,2.53634,2769.9,2769.8,2.11737141]
[1749750599187,2.53634,2769.9,2769.7,5.32517141]
[1749750599188,0.72187,2769.8,2769.7,5.32517141]
[1749750600381,0.72187,2769.8,2769.7,3.2078]
[1749750600788,0.72189,2769.7,2769.6,2.12278374]
[1749750601085,23.13389,2769.7,2769.6,0.00541233]
[1749750601586,24.31649,2769.7,2769.6,0.00541233]
[1749750601783,29.31649,2769.7,2769.6,2.33e-06]
[1749750602290,32.52429,2769.7,2769.6,2.33e-06]
[1749750602479,5.11229,2769.7,2769.6,2.33e-06]
[1749750602686,23.13389,2769.7,2769.6,2.33e-06]
[1749750604188,22.412,2769.7,2769.6,0.72192233]
[1749750604488,1.24499,2769.8,2769.7,0.72189]
[1749750604677,0.5231,2769.8,2769.7,0.72189]
[1749750604879,23.65897,2769.8,2769.7,1.34289]
[1749750605288,0.5231,2769.8,2769.7,1.34289]
[1749750605488,22.9371,2769.8,2769.7,1.34289]
[1749750605687,22.9371,2769.8,2769.7,2.56679]
[1749750606785,0.28834445,2770.2,2769.7,2.56679]
[1749750606786,5.915,2770.7,2769.7,6.8449]
[1749750606983,6.63665,2770.7,2770.6,3.2078]
[1749750607179,29.05065,2770.7,2770.6,3.2078]
[1749750607388,0.72174,2770.3,2770.2,3.2078]
[1749750607580,22.414,2770.3,2770.2,3.2078]
[1749750607786,22.414,2770.3,2770.2,3.92956]
[1749750607991,23.13574,2770.3,2770.2,3.92956]
[1749750608196,22.414,2770.3,2770.2,3.92956]
[1749750608588,0.00541233,2770.5,2770.4,0.72171]
[1749750608785,0.00541233,2770.5,2770.3,1.94842]
[1749750609091,0.72174,2770.3,2770.2,6.04671341]
[1749750609291,0.72174,2770.3,2770.2,3.2078]
[1749750610186,0.72173,2770.4,2770.2,3.92955]
[1749750610583,0.72173,2770.4,2770.3,0.72174]
[1749750610787,0.72174,2770.3,2770.2,3.2078]
[1749750610987,0.72179,2770.1,2770.0,2.11716341]
[1749750611190,0.72184,2769.9,2769.8,3.2078]
[1749750613193,0.72184,2770.0,2769.8,3.2078]
[1749750613493,5.914,2770.0,2769.9,0.72184]
[1749750613696,28.328,2770.0,2769.9,0.72184]
[1749750613888,0.72179,2770.1,2770.0,0.72182]
[1749750614088,0.5949,2770.4,2769.9,1.1978]
[1749750614089,0.72177,2770.2,2769.9,1.1978]
[1749750614289,22.414,2770.1,2770.0,0.72182]
[1749750614486,22.414,2770.3,2770.2,0.72176]
[1749750614691,0.72176,2770.2,2770.1,0.6444]
[1749750615085,0.72176,2770.2,2770.1,1.36619]
[1749750615293,23.13576,2770.3,2770.2,0.72176]
[1749750615496,0.72176,2770.2,2770.1,1.36618]
[1749750615696,23.13576,2770.3,2770.2,0.72176]
[1749750615896,0.00541233,2770.5,2770.1,2.44885]
[1749750616198,29.05510233,2770.5,2770.4,3.92951]
[1749750616393,5.91941233,2770.5,2770.4,3.92951]
[1749750616585,0.00541233,2770.5,2770.4,3.92951]
[1749750616789,0.72710233,2770.5,2770.4,5.32496341]
[1749750616988,0.72171,2770.4,2770.3,2.11716341]
[1749750617190,0.72176,2770.3,2770.2,2.83892341]
[1749750617403,0.72176,2770.3,2770.2,2.11716341]
[1749750619090,0.72176,2770.3,2770.2,2.83892341]
[1749750619294,5.91941233,2770.5,2770.3,0.72172]
[1749750619493,0.72172,2770.4,2770.3,0.72172]
[1749750619694,22.413,2770.4,2770.3,5.32496341]
[1749750619892,22.413,2770.4,2770.3,6.04670341]
[1749750620292,23.13471,2770.4,2770.3,6.04670341]
[1749750620493,22.413,2770.4,2770.3,6.04670341]
[1749750620796,23.13471,2770.4,2770.3,6.04670341]
[1749750621799,28.33241233,2770.5,2770.4,0.72171]
[1749750622003,29.05410233,2770.5,2770.4,2.84350884]
[1749750622195,29.05410233,2770.5,2770.4,2.12179884]
[1749750623993,29.05410233,2770.5,2770.3,5.32959884]
[1749750623994,0.72171,2770.4,2770.3,5.32959884]
[1749750624201,1.8151,2770.4,2770.2,1.41548297]
[1749750624397,0.72176,2770.2,2770.1,1.41548297]
[1749750624793,2.01416,2770.2,2770.1,1.41548297]
[1749750624994,0.72179,2770.1,2770.0,2.12179884]
[1749750625198,29.04679,2770.1,2770.0,2.84361884]
[1749750625401,29.04679,2770.1,2770.0,2.12179884]
[1749750626104,0.72179,2770.1,2770.0,2.12179884]
[1749750626305,23.13279,2770.1,2770.0,2.12179884]
[1749750626503,0.00541233,2770.5,2770.1,1.80448]
[1749750626705,0.00541233,2770.5,2770.4,6.05357615]
[1749750626899,0.72710233,2770.5,2770.4,5.33186615]
[1749750627100,0.00541233,2770.5,2770.4,6.05357615]
[1749750627402,0.00541233,2770.5,2770.4,3.92951]
[1749750627703,0.72155,2771.1,2770.6,1.80416]
[1749750627906,0.72153,2771.1,2771.0,5.32947921]
[1749750628102,0.72153,2771.1,2770.9,2.84323921]
[1749750628401,0.72156,2771.0,2770.9,2.84323921]
[1749750628609,0.72156,2771.0,2770.9,2.12167921]
[1749750629496,1.92885,2771.1,2770.9,2.84325921]
[1749750629701,0.00541233,2771.2,2771.1,0.72153]
[1749750629903,0.00541233,2771.2,2771.1,2.84320921]
[1749750631111,0.00541233,2771.2,2771.1,0.72153]
[1749750632107,0.00541233,2771.2,2771.0,7.28490562]
[1749750632403,0.72693233,2771.2,2771.1,0.72153]
[1749750632604,0.00541233,2771.2,2771.1,0.72153]
[1749750635010,0.72691233,2771.2,2771.1,0.72153]
[1749750635309,0.00541233,2771.2,2771.1,0.72153]
[1749750635903,0.72691233,2771.2,2771.1,0.72153]
[1749750637309,0.00541233,2771.2,2771.1,0.72153]
[1749750639611,0.72153,2771.1,2771.0,3.92936]
[1749750639810,0.72153,2771.1,2771.0,5.32440117]
[1749750640014,2.59223,2771.1,2771.0,6.04602276]
[1749750641010,1.8707,2771.1,2771.0,6.04602276]
[1749750641212,0.5888,2771.1,2771.0,3.92933]
[1749750641809,0.72691233,2771.2,2771.1,0.72153]
[1749750642006,0.72691233,2771.2,2771.1,2.83823602]
[1749750642406,0.72691233,2771.2,2771.1,2.11670602]
[1749750642606,0.72691233,2771.2,2771.1,2.83823602]
[1749750642803,0.72691233,2771.2,2771.1,2.11670602]
[1749750643002,0.72153,2771.1,2771.0,5.32450602]
[1749750643208,0.72158,2770.9,2770.8,1.41263261]
[1749750643417,0.72158,2770.9,2770.4,3.2078]
[1749750643418,0.72163,2770.7,2770.6,1.41263261]
[1749750643614,0.72166,2770.6,2770.5,1.41263261]
[1749750643917,2.02136,2770.6,2770.5,1.41263261]
[1749750644723,0.72171,2770.4,2770.3,1.41263261]
[1749750644907,0.72174,2770.3,2770.2,1.41263261]
[1749750645111,9.17554,2770.3,2770.2,1.41263261]
[1749750645412,9.17554,2770.3,2770.1,1.41263261]
[1749750645413,0.72176,2770.2,2770.1,1.41263261]
[1749750645608,0.72179,2770.1,2770.0,1.41263261]
[1749750645813,0.72187,2769.8,2769.7,4.62043261]
[1749750646113,29.03787,2769.8,2769.7,3.2078]
[1749750647722,0.72189,2769.7,2769.6,2.33e-06]
[1749750648016,2.57679,2769.7,2769.6,2.33e-06]
[1749750649914,24.98479,2769.7,2769.6,2.33e-06]
[1749750656121,30.90079,2769.7,2769.6,2.33e-06]
[1749750659021,2.57679,2769.7,2769.6,2.33e-06]
[1749750659324,30.90379,2769.7,2769.6,2.33e-06]
[1749750660826,2.57679,2769.7,2769.6,2.33e-06]
[1749750661126,30.90379,2769.7,2769.6,2.33e-06]
[1749750661324,30.90379,2769.7,2768.9,2.40975]
[1749750661325,30.90379,2769.7,2768.8,2.11969205]
[1749750661625,30.90379,2769.7,2767.6,40.8]
[1749750661626,3.2078,2769.2,2768.4,3.2078]
[1749750661832,23.425,2769.1,2768.4,3.2078]
[1749750662219,3.2078,2768.9,2768.0,3.2078]
[1749750662428,0.72226,2768.3,2768.2,0.00541233]
[1749750662728,24.14626,2768.3,2768.2,0.00541233]
[1749750663322,27.35406,2768.3,2768.2,0.00541233]
[1749750663927,0.7225,2767.4,2767.1,6.451]
[1749750664126,24.1405,2767.4,2767.1,7.17355]
[1749750664320,24.1405,2767.4,2767.2,0.72254]
[1749750664530,23.418,2767.4,2767.0,3.2078]
[1749750664828,0.72257,2767.1,2767.0,3.2078]
[1749750665222,0.72257,2767.1,2767.0,8.2078]
[1749750666234,0.00541233,2767.3,2767.1,0.72257]
[1749750666530,24.13657,2767.1,2767.0,4.4298]
[1749750666839,24.13657,2767.1,2767.0,5.1524]
[1749750667025,24.13657,2767.1,2767.0,9.4298]
[1749750667333,24.13657,2767.1,2767.0,3.2078]
[1749750667630,0.7226,2767.0,2766.9,3.21321233]
[1749750668032,0.7226,2767.0,2766.9,8.21321233]
[1749750668530,24.0946,2767.0,2766.9,8.93583233]
[1749750668735,24.0946,2767.0,2766.9,8.21321233]
[1749750669034,23.372,2767.0,2766.9,8.93583233]
[1749750669331,23.372,2767.0,2766.9,8.21321233]
[1749750669534,0.72256,2767.2,2766.9,8.21321233]
[1749750669734,3.8235,2768.1,2766.9,10.01974233]
[1749750670033,5.01378,2767.8,2767.2,0.72254]
[1749750670333,0.72258,2767.1,2767.0,0.7226]
[1749750670525,0.7226,2767.0,2766.9,0.00541233]
[1749750671433,5.01424,2767.1,2766.1,3.2078]
[1749750671620,0.72266,2766.8,2766.7,0.72265]
[1749750671819,0.7227,2766.7,2766.6,0.72269]
[1749750672328,0.7227,2766.7,2766.5,3.2078]
[1749750672329,3.2078,2767.1,2766.4,5.02006233]
[1749750672634,3.2078,2767.1,2766.9,0.7226]
[1749750672635,24.07263,2767.0,2766.9,0.7226]
[1749750672832,0.72265,2766.9,2766.8,0.72263]
[1749750673228,0.72273,2766.6,2766.5,0.72271]
[1749750673835,0.72265,2766.9,2766.8,0.72262]
[1749750674638,0.7226,2767.0,2766.9,0.72263]
[1749750674825,23.334,2767.0,2766.9,0.72263]
[1749750675028,24.0566,2767.0,2766.9,0.72263]
[1749750676136,0.72265,2766.9,2766.8,0.72263]
[1749750676335,24.05662,2767.0,2766.9,0.72262]
[1749750676632,23.308,2767.0,2766.9,0.72262]
[1749750676832,24.0306,2767.0,2766.9,0.72262]
[1749750677637,23.308,2767.0,2766.9,0.72262]
[1749750677832,24.0306,2767.0,2766.9,0.72262]
[1749750678034,0.7226,2767.0,2766.9,0.72262]
[1749750678530,24.0026,2767.0,2766.9,0.72262]
[1749750678931,24.0006,2767.0,2766.9,0.72262]
[1749750679238,24.0006,2767.0,2766.5,5.01459]
[1749750679239,0.72266,2766.9,2766.8,0.72263]
[1749750679433,0.72268,2766.8,2766.7,0.72266]
[1749750679929,0.72265,2766.9,2766.8,0.72262]
[1749750681231,0.7227,2766.7,2766.6,0.72269]
[1749750682637,5.01962233,2767.2,2767.1,0.72257]
[1749750682638,3.21321233,2767.2,2767.1,0.72257]
[1749750682936,0.72262,2767.1,2767.0,0.72258]
[1749750683141,23.96562,2767.1,2767.0,0.72258]
[1749750683644,23.243,2767.1,2767.0,0.72258]
[1749750683840,0.72797233,2767.2,2767.1,0.72257]
[1749750684033,23.96197233,2767.2,2767.1,0.72257]
[1749750684538,9.42471233,2767.2,2765.5,3.2078]
[1749750684842,26.6058,2767.1,2766.6,3.2078]
[1749750685135,26.6058,2767.1,2766.1,1.80709]
[1749750685136,0.72266,2766.8,2766.3,3.2078]
[1749750685342,26.6058,2767.1,2766.3,3.2078]
[1749750685638,3.2078,2767.1,2766.4,7.73232221]
[1749750685838,0.72261,2767.0,2766.9,0.72261]
[1749750686030,26.6128,2767.1,2766.4,7.73232221]
[1749750686230,26.6128,2767.1,2766.8,0.72263]
[1749750686434,0.72262,2766.9,2766.8,0.72263]
[1749750686836,0.72265,2766.8,2766.7,3.93046]
[1749750687038,26.6088,2767.1,2766.6,0.72268]
[1749750687039,0.7228,2766.9,2766.6,0.72268]
[1749750687239,0.72267,2766.8,2766.7,0.72268]
[1749750687433,0.7228,2766.9,2766.4,10.94012221]
[1749750687639,0.72273,2766.5,2766.4,0.00542221]
[1749750688242,2.61243,2766.5,2766.4,0.00542221]
[1749750690141,2.61243,2766.5,2766.4,0.72817221]
[1749750690344,1.8897,2766.5,2766.4,0.72817221]
[1749750690740,0.5995,2766.5,2766.4,0.72817221]
[1749750691153,23.348,2766.6,2766.5,0.72273]
[1749750691443,0.6207,2766.7,2766.6,0.7227]
[1749750691743,24.06466,2766.8,2766.7,0.72268]
[1749750692439,23.342,2766.8,2766.4,0.00542221]
[1749750692641,1.44543,2766.9,2766.8,0.72265]
[1749750692845,0.72267,2766.8,2766.7,0.72266]
[1749750693250,24.78444,2766.9,2766.8,0.72265]
[1749750693646,0.72268,2766.8,2766.7,0.72266]
[1749750694050,24.78444,2766.9,2766.8,0.72265]
[1749750694249,0.72267,2766.8,2766.7,0.72266]
[1749750694950,0.7227,2766.7,2766.6,0.72268]
[1749750695650,0.72267,2766.8,2766.7,0.72265]
[1749750696348,0.7228,2766.9,2766.8,0.72265]
[1749750696554,0.7228,2766.9,2766.8,3.93045]
[1749750696746,1.44542,2766.9,2766.8,3.93045]
[1749750697053,1.44542,2766.9,2766.8,0.72265]
[1749750697546,0.7228,2766.9,2766.8,0.72265]
[1749750697950,1.44542,2766.9,2766.8,0.72265]
[1749750698148,0.7228,2766.9,2766.8,0.72265]
[1749750699048,1.44542,2766.9,2766.8,0.72265]
[1749750700251,0.7228,2766.9,2766.8,0.72265]
[1749750701256,1.44542,2766.9,2766.8,0.72265]
[1749750701553,1.44542,2766.9,2766.7,4.17511565]
[1749750701554,0.72265,2766.8,2766.7,4.17511565]
[1749750701953,0.7228,2766.9,2766.8,0.72265]
[1749750702150,0.7228,2766.9,2766.8,3.57355288]
[1749750702457,1.1564,2766.9,2766.8,3.57355288]
[1749750702953,1.87902,2766.9,2766.8,3.57355288]
[1749750703350,1.1564,2766.9,2766.8,3.57355288]
[1749750703752,1.1564,2766.9,2766.8,6.78135288]
[1749750703957,1.1564,2766.9,2766.8,5.21225]
[1749750705055,1.87902,2766.9,2766.8,3.57317865]
[1749750705756,1.1564,2766.9,2766.8,0.72265]
[1749750705958,1.1564,2766.9,2766.8,2.00445]
[1749750706151,0.4336,2766.9,2766.8,2.00445]
[1749750711457,0.00541233,2767.2,2767.1,0.72257]
[1749750711654,1.2001,2767.8,2767.4,0.72249]
[1749750711865,0.72245,2767.6,2767.4,3.56854352]
[1749750712063,0.72245,2767.6,2767.4,0.72249]
[1749750712459,0.72243,2767.7,2767.6,0.72241]
[1749750712959,3.2078,2768.5,2768.4,0.72223]
[1749750713261,0.72225,2768.4,2768.3,0.72224]
[1749750713456,2.62055,2768.4,2768.3,0.72224]
[1749750713862,3.851,2768.5,2768.4,0.72223]
[1749750714057,4.57321,2768.5,2768.4,0.72223]
[1749750714660,1.36541,2768.5,2768.4,0.72223]
[1749750715264,0.72226,2768.4,2768.3,0.72224]
[1749750716663,0.6432,2768.5,2768.2,0.00542221]
[1749750716969,0.72226,2768.4,2768.3,0.72225]
[1749750717467,1.36543,2768.5,2768.4,0.72223]
[1749750717667,0.72226,2768.4,2768.3,0.72224]
[1749750718665,0.72226,2768.3,2768.2,0.72769221]
[1749750719570,1.96335,2768.4,2768.3,0.72226]
[1749750720868,1.2411,2768.4,2768.2,0.00542221]
[1749750721058,0.72226,2768.3,2768.2,0.00542221]
[1749750721264,1.32116,2768.3,2768.2,0.00542221]
[1749750721464,30.63806,2768.3,2768.2,0.00542221]
[1749750722466,25.63806,2768.3,2768.2,0.00542221]
[1749750724373,0.72247,2767.5,2767.4,3.2078]
[1749750724676,0.72252,2767.3,2767.2,0.72255]
[1749750724867,3.255,2767.4,2767.3,0.72252]
[1749750725063,0.72262,2767.0,2766.9,0.72261]
[1749750725264,0.72264,2766.9,2766.8,0.72263]
[1749750725471,1.2663,2766.9,2766.8,0.72263]
[1749750726273,1.98892,2766.9,2766.8,0.72263]
[1749750727570,0.00542221,2767.2,2767.1,0.72257]
[1749750727768,23.00242221,2767.2,2767.1,0.72257]
[1749750728876,0.00542221,2767.2,2767.1,0.72257]
[1749750730169,0.72797221,2767.2,2767.1,0.72257]
[1749750730365,0.72798221,2767.2,2767.1,0.72257]
[1749750730874,0.72798221,2767.2,2766.9,6.252]
[1749750730875,0.72262,2767.0,2766.9,0.7226]
[1749750731077,0.72262,2767.0,2766.9,6.9746]
[1749750731275,1.2929,2767.1,2767.0,0.7226]
[1749750732775,0.72797221,2767.2,2767.1,0.72257]
[1749750732973,0.00542221,2767.2,2767.1,0.72257]
[1749750734672,0.00542221,2767.2,2767.1,3.93037]
[1749750735076,0.00542221,2767.2,2767.1,5.21627]
[1749750735271,0.72243,2767.7,2767.6,0.72244]
[1749750735472,1.32103,2767.7,2767.6,0.72244]
[1749750736574,2.56533,2767.7,2767.6,0.72244]
[1749750740186,0.7225,2767.5,2767.4,0.72246]
[1749750740386,0.72253,2767.4,2767.3,0.7225]
[1749750740581,1.94093,2767.4,2767.3,0.7225]
[1749750741386,0.72246,2767.6,2767.2,1.80635]
[1749750741582,2.53943,2767.7,2767.3,1.80629]
[1749750741885,25.42441,2767.7,2767.6,0.72244]
[1749750742680,2.53941,2767.7,2767.6,0.72244]
[1749750743387,0.72249,2767.5,2767.4,0.72245]
[1749750743783,0.72252,2767.4,2767.3,0.7225]
[1749750744087,0.72256,2767.3,2767.2,0.72252]
[1749750744279,1.31386,2767.3,2767.2,0.72252]
[1749750744582,0.72257,2767.1,2766.9,9.09401118]
[1749750744786,0.72257,2767.1,2767.0,0.7226]
[1749750745185,2.39763,2767.3,2766.9,6.252]
[1749750745186,0.72262,2767.0,2766.9,0.72259]
[1749750745388,26.0628,2767.2,2766.7,1.81210221]
[1749750745686,23.57756,2767.2,2767.1,0.72257]
[1749750748392,32.86919,2767.2,2766.7,2.84743339]
[1749750748689,0.72265,2766.8,2766.7,0.72810221]
[1749750748990,0.72257,2767.2,2767.1,0.72257]
[1749750749195,0.72257,2767.2,2766.8,1.80663]
[1749750749196,0.72262,2767.0,2766.7,8.45930651]
[1749750749380,22.834,2767.2,2766.7,8.45930651]
[1749750749585,0.72259,2767.1,2767.0,0.72257]
[1749750751293,0.7226,2767.1,2767.0,0.72258]
[1749750753680,0.7226,2767.0,2766.9,3.5660043]
[1749750754087,0.7226,2767.0,2766.9,2.8434043]
[1749750755192,0.72262,2766.9,2766.8,2.8434043]
[1749750757296,0.72265,2766.8,2766.7,2.84882651]
[1749750757596,0.72265,2766.8,2766.1,3.54234225]
[1749750757597,0.72281,2766.2,2766.1,3.54234225]
[1749750757795,1.80676,2766.6,2765.8,9.3448]
[1749750757796,0.72288,2766.0,2765.9,0.72286]
[1749750758099,0.72288,2765.9,2765.8,3.54234225]
[1749750758295,0.72288,2765.9,2765.5,6.75014225]
[1749750758296,1.3227,2765.9,2765.5,6.75014225]
[1749750758498,22.794,2765.9,2765.8,0.72291]
[1749750758797,22.79942221,2766.0,2765.9,0.72288]
[1749750759303,23.52228221,2766.0,2765.9,0.72288]
[1749750760101,0.7229,2765.9,2765.8,0.72289]
[1749750760301,0.72293,2765.8,2765.7,0.72292]
[1749750761798,0.7229,2765.9,2765.8,0.72288]
[1749750761998,22.79942221,2766.0,2765.9,0.72288]
[1749750763100,23.52228221,2766.0,2765.9,0.72288]
[1749750763301,0.00542221,2766.0,2765.9,0.72288]
[1749750764202,0.72828221,2766.0,2765.9,0.72288]
[1749750764409,0.72288,2765.9,2765.8,0.5935]
[1749750765398,0.72288,2765.9,2765.8,1.31639]
[1749750765600,0.00542221,2766.0,2765.9,0.72288]
[1749750765896,0.7227,2766.7,2766.6,0.72268]
[1749750766292,0.72274,2766.6,2766.5,0.72271]
[1749750766798,0.72269,2766.7,2766.6,0.72268]
[1749750767995,0.72809221,2766.8,2766.7,0.72268]
[1749750768192,0.00542221,2766.8,2766.7,0.72268]
[1749750769705,0.72807221,2766.8,2766.7,0.72268]
[1749750769905,0.00542221,2766.8,2766.7,0.72268]
[1749750770203,0.72807221,2766.8,2766.7,0.72268]
[1749750770601,0.72809221,2766.8,2766.7,0.72268]
[1749750771696,0.72271,2766.7,2766.6,0.72268]
[1749750775008,0.7227,2766.6,2766.5,3.55753614]
[1749750775203,0.72269,2766.7,2766.6,0.72268]
[1749750776406,0.72807221,2766.8,2766.7,0.72268]
[1749750776707,23.39307221,2766.8,2766.7,0.72268]
[1749750776907,0.72807221,2766.8,2766.7,0.72268]
[1749750777103,0.00542221,2766.8,2766.7,0.72268]
[1749750777511,0.00542221,2766.8,2766.7,3.55750614]
[1749750780210,0.00542221,2766.8,2766.7,0.72268]
[1749750780598,0.0242,2767.4,2767.3,0.72252]
[1749750780801,0.72249,2767.4,2767.3,3.93032]
[1749750781512,0.72249,2767.4,2767.3,0.72252]
[1749750782207,0.00542221,2767.6,2767.1,0.00542221]
[1749750782407,0.00542221,2767.6,2767.5,0.72247]
[1749750783315,0.72786221,2767.6,2767.5,0.72247]
[1749750783909,0.00542221,2767.6,2767.5,0.72247]
[1749750784205,0.72786221,2767.6,2767.5,0.72247]
[1749750785306,2.02826221,2767.6,2767.5,0.72247]
[1749750786906,1.30582221,2767.6,2767.5,0.72247]
[1749750787704,0.00542221,2767.6,2767.5,0.72247]
[1749750787907,0.4751,2767.8,2767.7,0.72241]
[1749750788109,0.6291,2768.1,2768.0,0.72234]
[1749750788610,1.35141,2768.1,2768.0,0.72234]
[1749750791216,0.6235,2768.5,2768.4,0.72223]
[1749750792210,0.72216,2768.7,2768.6,0.72215]
[1749750792416,1.8517,2768.7,2768.6,0.72215]
[1749750793114,2.57385,2768.7,2768.6,0.72215]
[1749750793416,0.6302,2768.7,2768.6,0.72215]
[1749750794611,1.35235,2768.7,2768.6,0.72215]
[1749750796612,1.35235,2768.7,2768.3,0.72222]
[1749750796613,0.72226,2768.4,2768.3,0.72222]
[1749750797309,1.97806,2768.4,2768.3,0.72222]
[1749750798814,0.72228,2768.3,2768.1,3.2078]
[1749750799119,0.72232,2768.2,2768.1,0.72229]
[1749750799616,1.98292,2768.2,2768.1,0.72229]
[1749750799811,1.98292,2768.2,2767.8,3.2078]
[1749750800120,0.72243,2767.7,2767.6,0.7224]
[1749750801014,23.8086,2768.0,2767.5,1.80618]
[1749750801219,24.53095,2768.0,2767.9,0.72236]
[1749750801420,1.98295,2768.0,2767.9,0.72236]
[1749750801618,0.7224,2767.9,2767.8,0.72238]
[1749750801812,1.9673,2767.9,2767.8,0.72238]
[1749750802017,0.72242,2767.8,2767.7,0.72239]
[1749750802214,2.59032,2767.8,2767.7,0.72239]
[1749750802719,0.72244,2767.7,2767.6,0.72242]
[1749750802913,1.96734,2767.7,2767.6,0.72242]
[1749750803116,0.72247,2767.5,2767.4,0.72248]
[1749750803620,0.72249,2767.4,2767.3,0.7225]
[1749750803918,2.56329,2767.4,2767.3,0.7225]
[1749750804607,1.8408,2767.4,2767.3,0.7225]
[1749750805012,0.5959,2767.4,2767.3,0.7225]
[1749750805212,1.31839,2767.4,2767.3,0.7225]
[1749750806015,0.5959,2767.4,2767.3,0.7225]
[1749750806422,1.31839,2767.4,2767.3,0.7225]
[1749750807723,0.5959,2767.4,2767.3,0.7225]
[1749750808620,22.544,2767.7,2767.3,0.7225]
[1749750808621,0.623,2767.8,2767.7,0.72241]
[1749750808826,0.5968,2768.0,2767.9,0.72236]
[1749750809017,1.31914,2768.0,2767.9,0.72236]
[1749750810823,0.5968,2768.0,2767.9,0.72236]
[1749750811326,3.2078,2768.2,2768.1,0.72231]
[1749750811824,3.93008,2768.2,2768.1,0.72231]
[1749750814226,0.72228,2768.2,2768.1,0.72231]
[1749750815734,0.72226,2768.3,2768.2,0.72226]
[1749750815930,0.72229,2768.3,2768.2,0.72226]
[1749750816727,3.11495,2768.4,2768.3,0.72226]
[1749750816927,0.4746,2768.5,2768.4,0.72223]
[1749750817328,0.4746,2768.5,2768.4,3.56044904]
[1749750817832,0.4746,2768.5,2768.4,3.56237798]
[1749750820027,0.4746,2768.5,2768.4,6.77017798]
[1749750820730,1.19681,2768.5,2768.4,2.84014798]
[1749750820930,31.2154,2768.5,2768.2,2.84014798]
[1749750821240,0.72236,2767.9,2767.8,2.84014798]
[1749750821439,0.72241,2767.7,2767.6,2.84014798]
[1749750821736,25.7408,2767.9,2767.5,0.72246]
[1749750821737,0.72244,2767.6,2767.5,0.72246]
[1749750821938,4.25781,2767.8,2767.3,2.84014798]
[1749750822138,0.72255,2767.2,2767.1,0.00542221]
[1749750822439,0.72255,2767.2,2767.1,0.72799221]
[1749750822639,0.72255,2767.2,2767.1,0.00542221]
[1749750823534,2.00745,2767.2,2767.1,0.00542221]
[1749750825239,2.00745,2767.2,2767.1,0.72799221]
[1749750825442,1.2849,2767.2,2767.1,0.72799221]
[1749750825635,27.18703,2767.3,2767.2,0.72255]
[1749750825939,27.18903,2767.3,2767.2,0.72255]
[1749750826138,26.4665,2767.3,2767.2,0.72255]
[1749750826334,27.18902,2767.3,2767.2,0.72255]
[1749750826537,0.72255,2767.2,2767.1,0.72798221]
[1749750826932,27.18903,2767.3,2767.2,0.72255]
[1749750827137,26.4665,2767.3,2767.2,0.72255]
[1749750827333,0.72255,2767.2,2767.1,0.72797221]
[1749750827933,0.72255,2767.2,2767.1,0.00542221]
[1749750828134,1.91005,2767.2,2767.1,0.00542221]
[1749750829042,1.91005,2767.2,2767.1,0.72799221]
[1749750829948,0.72255,2767.2,2767.1,0.72799221]
[1749750830146,0.72255,2767.2,2767.1,0.00542221]
[1749750830346,1.91925,2767.2,2767.1,0.00542221]
[1749750830547,2.56105,2767.2,2767.1,0.00542221]
[1749750831844,31.08105,2767.2,2767.1,0.00542221]
[1749750839250,31.08105,2767.2,2766.3,7.85489798]
[1749750839251,0.72275,2766.5,2766.4,0.72274]
[1749750839452,23.26275,2766.5,2766.4,0.72274]
[1749750840154,0.72275,2766.4,2766.3,0.72275]
[1749750840556,0.72278,2766.3,2766.2,0.00542221]
[1749750840757,2.57098,2766.3,2766.2,0.00542221]
[1749750842049,0.72291,2765.8,2765.7,0.72292]
[1749750842249,23.26391,2765.8,2765.7,0.72292]
[1749750842950,22.541,2765.8,2765.7,0.72292]
[1749750843355,22.541,2765.8,2765.7,1.93942]
[1749750843560,0.723,2765.9,2765.8,0.72291]
[1749750843861,0.723,2765.9,2765.8,1.93941]
[1749750844258,1.44589,2765.9,2765.8,1.93941]
[1749750844456,1.44589,2765.9,2765.8,0.72291]
[1749750844865,1.44589,2765.9,2765.6,1.36794]
[1749750844866,0.72294,2765.7,2765.6,1.36794]
[1749750845864,0.72294,2765.8,2765.7,0.72291]
[1749750847058,1.44589,2765.9,2765.8,0.72291]
[1749750847360,23.268,2765.9,2765.8,0.72291]
[1749750847560,23.99089,2765.9,2765.8,0.72291]